fUST/lending_fUST_20250701
["ID","MTS","AMOUNT","RATE_DAILY","PERIOD"]
[368851626,1751376668252,-2053.17,0.00021381,2]
[368851627,1751376668263,-1092.8,0.00021381,2]
[368851628,1751376668274,-1591.45,0.00021381,2]
[368851629,1751376668284,-168.0,0.00021417,2]
[368851630,1751376668296,-151.0,0.00021431,2]
[368851631,1751376668307,-1066.563368,0.00021431,2]
[368851632,1751376668317,-1066.563368,0.00021431,2]
[368851633,1751376668327,-460.0,0.00021476,2]
[368851634,1751376668337,-460.0,0.00021476,2]
[368851635,1751376668347,-629.01,0.00021476,2]
[368851636,1751376668357,-460.0,0.00021476,2]
[368851637,1751376668366,-460.0,0.00021476,2]
[368851638,1751376668376,-460.0,0.00021476,2]
[368851639,1751376668385,-642.37,0.00021476,2]
[368851640,1751376668395,-474.1,0.00021476,2]
[368851641,1751376668406,-474.54,0.00021476,2]
[368851642,1751376668416,-1394.04,0.00021476,2]
[368851643,1751376668426,-603.08,0.00021476,2]
[368851644,1751376668436,-1256.82,0.00021476,2]
[368851645,1751376668446,-857.59,0.00021476,2]
[368851646,1751376668457,-460.0,0.00021476,2]
[368851647,1751376668467,-442.35,0.00021476,2]
[368851648,1751376668476,-540.67,0.00021476,2]
[368851649,1751376668486,-460.0,0.00021476,2]
[368851650,1751376668496,-1100.95,0.00021476,2]
[368851651,1751376668505,-703.62,0.00021476,2]
[368851652,1751376668515,-513.66,0.00021476,2]
[368851653,1751376668525,-653.48,0.00021476,2]
[368851654,1751376668535,-495.49,0.00021476,2]
[368851655,1751376668548,-678.27,0.00021476,2]
[368851656,1751376668557,-472.0,0.00021477,2]
[368851657,1751376668567,-823.93,0.00021477,2]
[368851658,1751376668576,-460.0,0.00021477,2]
[368851659,1751376668586,-510.94,0.00021477,2]
[368851660,1751376668596,-695.91,0.00021477,2]
[368851661,1751376668607,-152.9,0.00021477,2]
[368851662,1751376668617,-460.0,0.00021477,2]
[368851663,1751376668627,-979.38,0.00021477,2]
[368851664,1751376668637,-460.0,0.00021477,2]
[368851665,1751376668648,-218.06,0.00021477,2]
[368851666,1751376668659,-1129.1,0.00021479,2]
[368851667,1751376668669,-704.77,0.00021479,2]
[368851668,1751376668679,-460.0,0.00021479,2]
[368851669,1751376668690,-768.12,0.00021479,2]
[368851670,1751376668700,-5015.81,0.00021479,2]
[368851671,1751376668711,-460.0,0.00021479,2]
[368851672,1751376668722,-737.94,0.00021479,2]
[368851673,1751376668732,-1161.05,0.00021479,2]
[368851674,1751376668849,-651.54,0.00021479,2]
[368851675,1751376668859,-460.0,0.00021479,2]
[368851676,1751376668870,-2469.46,0.00021479,2]
[368851677,1751376668880,-1448.72,0.00021479,2]
[368851678,1751376668891,-168.78,0.00021479,2]
[368851679,1751376668901,-151.0,0.0002148,2]
[368851680,1751376668911,-151.0,0.0002148,2]
[368851681,1751376668921,-151.0,0.0002148,2]
[368851682,1751376668931,-287.086593,0.0002148,2]
[368851683,1751376668941,-287.086593,0.0002148,2]
[368851684,1751376668951,-460.0,0.0002148,2]
[368851685,1751376668961,-3553.77,0.0002148,2]
[368851686,1751376668971,-460.0,0.0002148,2]
[368851687,1751376668981,-1753.82,0.0002148,2]
[368851688,1751376668991,-5531.74,0.0002148,2]
[368851689,1751376669002,-1794.4,0.0002148,2]
[368851690,1751376669012,-460.0,0.00021481,2]
[368851691,1751376669022,-286.57297421,0.00021482,2]
[368851692,1751376669033,-6863.63929137,0.00021486,5]
[368851693,1751376669046,-300.0,0.00021512,2]
[368851694,1751376669056,-223.0315306,0.00021558,2]
[368851695,1751376669066,-4532.05402671,0.00021596,2]
[368851696,1751376669077,-5000.0,0.00021644,2]
[368851697,1751376669087,-4986.11734804,0.00021644,2]
[368851698,1751376669097,-524.13,0.00021653,2]
[368851699,1751376669107,-3650.08,0.00021653,2]
[368851700,1751376669117,-787.8,0.00021653,2]
[368851701,1751376669128,-460.0,0.00021653,2]
[368851702,1751376669138,-460.0,0.00021653,2]
[368851703,1751376669149,-1272.84,0.00021653,2]
[368851704,1751376669159,-2622.27,0.00021653,2]
[368851705,1751376669170,-4856.27,0.00021653,2]
[368851706,1751376669181,-460.0,0.00021653,2]
[368851707,1751376669192,-1670.35,0.00021653,2]
[368851708,1751376669202,-429.12,0.00021653,2]
[368851709,1751376669214,-460.0,0.00021653,2]
[368851710,1751376669224,-199.28,0.00021653,2]
[368851711,1751376669236,-460.0,0.00021653,2]
[368851712,1751376669246,-632.08,0.00021653,2]
[368851713,1751376669256,-222.08,0.00021653,2]
[368851714,1751376669266,-460.0,0.00021653,2]
[368851715,1751376669277,-2487.2,0.00021653,2]
[368851716,1751376669287,-2089.93,0.00021653,2]
[368851717,1751376669298,-460.0,0.00021653,2]
[368851718,1751376669308,-1083.66,0.00021653,2]
[368851719,1751376669318,-2999.72,0.00021653,2]
[368851720,1751376669327,-2053.17,0.00021655,2]
[368851721,1751376669337,-1092.8,0.00021655,2]
[368851722,1751376669347,-1591.45,0.00021655,2]
[368851723,1751376669356,-572.436795,0.00021711,2]
[368851724,1751376669366,-460.0,0.0002175,2]
[368851725,1751376669376,-460.0,0.0002175,2]
[368851726,1751376669386,-629.01,0.0002175,2]
[368851727,1751376669396,-535.36,0.0002175,2]
[368851728,1751376669405,-460.0,0.0002175,2]
[368851729,1751376669416,-460.0,0.0002175,2]
[368851730,1751376669426,-642.37,0.0002175,2]
[368851731,1751376669437,-474.1,0.0002175,2]
[368851732,1751376669447,-474.54,0.0002175,2]
[368851733,1751376669457,-1394.04,0.0002175,2]
[368851734,1751376669466,-603.08,0.0002175,2]
[368851735,1751376669477,-1256.82,0.0002175,2]
[368851736,1751376669487,-857.59,0.0002175,2]
[368851737,1751376669496,-460.0,0.0002175,2]
[368851738,1751376669506,-540.67,0.0002175,2]
[368851739,1751376669517,-220.8,0.0002175,2]
[368851740,1751376669527,-1100.95,0.0002175,2]
[368851741,1751376669537,-703.62,0.0002175,2]
[368851742,1751376669548,-513.66,0.0002175,2]
[368851743,1751376669558,-653.48,0.0002175,2]
[368851744,1751376669568,-495.49,0.0002175,2]
[368851745,1751376669577,-678.27,0.0002175,2]
[368851746,1751376669588,-823.93,0.00021751,2]
[368851747,1751376669597,-460.0,0.00021751,2]
[368851748,1751376669607,-695.91,0.00021751,2]
[368851749,1751376669616,-460.0,0.00021751,2]
[368851750,1751376669627,-979.38,0.00021751,2]
[368851751,1751376669637,-460.0,0.00021751,2]
[368851752,1751376669646,-151.0,0.00021753,2]
[368851753,1751376669656,-151.0,0.00021753,2]
[368851754,1751376669666,-1129.1,0.00021753,2]
[368851755,1751376669675,-175.657191,0.00021753,2]
[368851756,1751376669685,-175.657191,0.00021753,2]
[368851757,1751376669696,-151.0,0.00021753,2]
[368851758,1751376669707,-704.77,0.00021753,2]
[368851759,1751376669717,-460.0,0.00021753,2]
[368851760,1751376669727,-768.12,0.00021753,2]
[368851761,1751376669736,-5015.81,0.00021753,2]
[368851762,1751376669746,-460.0,0.00021753,2]
[368851763,1751376669756,-737.94,0.00021753,2]
[368851764,1751376669766,-1161.05,0.00021753,2]
[368851765,1751376669776,-651.54,0.00021753,2]
[368851766,1751376669786,-422.44,0.00021753,2]
[368851767,1751376669797,-2469.46,0.00021753,2]
[368851768,1751376669806,-1448.72,0.00021753,2]
[368851769,1751376669818,-460.0,0.00021754,2]
[368851770,1751376669828,-3553.77,0.00021754,2]
[368851771,1751376669838,-460.0,0.00021754,2]
[368851772,1751376669848,-1753.82,0.00021754,2]
[368851773,1751376669859,-5531.74,0.00021754,2]
[368851774,1751376669869,-1794.4,0.00021754,2]
[368851775,1751376669878,-460.0,0.00021755,2]
[368851776,1751376669888,-6863.63929137,0.00021762,5]
[368851777,1751376669898,-160.0479972,0.00021792,2]
[368851778,1751376669908,-1974.79,0.000218,2]
[368851779,1751376669918,-5318.0,0.00021912,2]
[368851780,1751376669928,-500.0,0.00021917,2]
[368851781,1751376669937,-500.0,0.00021917,2]
[368851782,1751376669947,-500.0,0.00021917,2]
[368851783,1751376669956,-500.0,0.00021917,2]
[368851784,1751376669965,-500.0,0.00021917,2]
[368851785,1751376669975,-500.0,0.00021917,2]
[368851786,1751376669984,-500.0,0.00021917,2]
[368851787,1751376669994,-500.0,0.00021917,2]
[368851788,1751376670003,-500.0,0.00021917,2]
[368851789,1751376670013,-500.0,0.00021917,2]
[368851790,1751376670022,-500.0,0.00021917,2]
[368851791,1751376670032,-500.0,0.00021917,2]
[368851792,1751376670042,-500.0,0.00021917,2]
[368851793,1751376670051,-460.0,0.00021917,2]
[368851794,1751376670061,-460.0,0.00021917,2]
[368851795,1751376670071,-460.0,0.00021917,2]
[368851796,1751376670081,-460.0,0.00021917,2]
[368851797,1751376670090,-460.0,0.00021917,2]
[368851798,1751376670099,-460.0,0.00021917,2]
[368851799,1751376670109,-251.95201027,0.00021917,2]
[368851800,1751376670118,-153.0,0.00021918,2]
[368851801,1751376670127,-153.0,0.00021918,2]
[368851802,1751376670137,-153.0,0.00021918,2]
[368851803,1751376670147,-153.0,0.00021918,2]
[368851804,1751376670156,-153.0,0.00021918,2]
[368851805,1751376670166,-153.0,0.00021918,2]
[368851806,1751376670176,-153.0,0.00021918,2]
[368851807,1751376670185,-153.0,0.00021918,2]
[368851808,1751376670195,-153.0,0.00021918,2]
[368851809,1751376670205,-153.0,0.00021918,2]
[368851810,1751376670215,-153.0,0.00021918,2]
[368851811,1751376670315,-153.0,0.00021918,2]
[368851812,1751376670326,-153.0,0.00021918,2]
[368851813,1751376670336,-153.0,0.00021918,2]
[368851814,1751376670346,-153.0,0.00021918,2]
[368851815,1751376670355,-153.0,0.00021918,2]
[368851816,1751376670365,-153.0,0.00021918,2]
[368851817,1751376670375,-153.0,0.00021918,2]
[368851818,1751376670385,-153.0,0.00021918,2]
[368851819,1751376670395,-153.0,0.00021918,2]
[368851820,1751376670405,-153.0,0.00021918,2]
[368851821,1751376670416,-153.0,0.00021918,2]
[368851822,1751376670426,-153.0,0.00021918,2]
[368851823,1751376670436,-153.0,0.00021918,2]
[368851824,1751376670446,-153.0,0.00021918,2]
[368851825,1751376670457,-153.0,0.00021918,2]
[368851826,1751376670468,-153.0,0.00021918,2]
[368851827,1751376670479,-153.0,0.00021918,2]
[368851828,1751376670489,-153.0,0.00021918,2]
[368851829,1751376670499,-153.0,0.00021918,2]
[368851830,1751376670509,-153.0,0.00021918,2]
[368851831,1751376670519,-153.0,0.00021918,2]
[368851832,1751376670529,-153.0,0.00021918,2]
[368851833,1751376670539,-153.0,0.00021918,2]
[368851834,1751376670550,-153.0,0.00021918,2]
[368851835,1751376670560,-153.0,0.00021918,2]
[368851836,1751376670570,-153.0,0.00021918,2]
[368851837,1751376670579,-153.0,0.00021918,2]
[368851838,1751376670589,-153.0,0.00021918,2]
[368851839,1751376670598,-153.0,0.00021918,2]
[368851840,1751376670608,-153.0,0.00021918,2]
[368851841,1751376670618,-153.0,0.00021918,2]
[368851842,1751376670628,-153.0,0.00021918,2]
[368851843,1751376670638,-153.0,0.00021918,2]
[368851844,1751376670647,-153.0,0.00021918,2]
[368851845,1751376670657,-153.0,0.00021918,2]
[368851846,1751376670666,-153.0,0.00021918,2]
[368851847,1751376670676,-153.0,0.00021918,2]
[368851848,1751376670686,-153.0,0.00021918,2]
[368851849,1751376670695,-153.0,0.00021918,2]
[368851850,1751376670705,-153.0,0.00021918,2]
[368851851,1751376670714,-153.0,0.00021918,2]
[368851852,1751376670724,-153.0,0.00021918,2]
[368851853,1751376670733,-153.0,0.00021918,2]
[368851854,1751376670743,-153.0,0.00021918,2]
[368851855,1751376670753,-153.0,0.00021918,2]
[368851856,1751376670763,-153.0,0.00021918,2]
[368851857,1751376670773,-153.0,0.00021918,2]
[368851858,1751376670783,-153.0,0.00021918,2]
[368851859,1751376670796,-153.0,0.00021918,2]
[368851860,1751376670806,-153.0,0.00021918,2]
[368851861,1751376670816,-153.0,0.00021918,2]
[368851862,1751376670827,-153.0,0.00021918,2]
[368851863,1751376670838,-153.0,0.00021918,2]
[368851864,1751376670848,-153.0,0.00021918,2]
[368851865,1751376670858,-153.0,0.00021918,2]
[368851866,1751376670867,-153.0,0.00021918,2]
[368851867,1751376670877,-153.0,0.00021918,2]
[368851868,1751376670887,-153.0,0.00021918,2]
[368851869,1751376670897,-153.0,0.00021918,2]
[368851870,1751376670907,-153.0,0.00021918,2]
[368851871,1751376670916,-153.0,0.00021918,2]
[368851872,1751376670926,-153.0,0.00021918,2]
[368851873,1751376670936,-153.0,0.00021918,2]
[368851874,1751376670945,-153.0,0.00021918,2]
[368851875,1751376670970,-153.0,0.00021918,2]
[368851876,1751376670987,-153.0,0.00021918,2]
[368851877,1751376671006,-153.0,0.00021918,2]
[368851878,1751376671026,-153.0,0.00021918,2]
[368851879,1751376671046,-153.0,0.00021918,2]
[368851880,1751376671063,-153.0,0.00021918,2]
[368851881,1751376671082,-153.0,0.00021918,2]
[368851882,1751376671097,-153.0,0.00021918,2]
[368851883,1751376671114,-153.0,0.00021918,2]
[368851884,1751376671133,-153.0,0.00021918,2]
[368851885,1751376671151,-153.0,0.00021918,2]
[368851886,1751376671166,-153.0,0.00021918,2]
[368851887,1751376671181,-153.0,0.00021918,2]
[368851888,1751376671200,-153.0,0.00021918,2]
[368851889,1751376671214,-153.0,0.00021918,2]
[368851890,1751376671230,-284.495867,0.00021918,2]
[368851891,1751376671246,-284.495867,0.00021918,2]
[368851892,1751376671263,-284.495867,0.00021918,2]
[368851893,1751376671279,-284.495867,0.00021918,2]
[368851894,1751376671294,-284.495867,0.00021918,2]
[368851895,1751376671309,-284.495867,0.00021918,2]
[368851896,1751376671324,-150.0,0.00021918,2]
[368851897,1751376671339,-300.0,0.00021918,2]
[368851898,1751376671354,-524.13,0.00021927,2]
[368851899,1751376671370,-3650.08,0.00021927,2]
[368851900,1751376671386,-787.8,0.00021927,2]
[368851901,1751376671402,-460.0,0.00021927,2]
[368851902,1751376671418,-460.0,0.00021927,2]
[368851903,1751376671433,-1272.84,0.00021927,2]
[368851904,1751376671449,-2622.27,0.00021927,2]
[368851905,1751376671464,-4856.27,0.00021927,2]
[368851906,1751376671479,-590.48,0.00021927,2]
[368851907,1751376671494,-1670.35,0.00021927,2]
[368851908,1751376671509,-460.0,0.00021927,2]
[368851909,1751376671525,-304.8,0.00021927,2]
[368851910,1751376671541,-632.08,0.00021927,2]
[368851911,1751376671557,-460.0,0.00021927,2]
[368851912,1751376671571,-2487.2,0.00021927,2]
[368851913,1751376671587,-2089.93,0.00021927,2]
[368851914,1751376671602,-460.0,0.00021927,2]
[368851915,1751376671618,-1083.66,0.00021927,2]
[368851916,1751376671633,-2999.72,0.00021927,2]
[368851917,1751376671647,-151.0,0.00021929,7]
[368851918,1751376671665,-251.712091,0.00021929,7]
[368851919,1751376671679,-151.0,0.00021929,7]
[368851920,1751376671694,-201.699608,0.00021929,7]
[368851921,1751376671708,-201.699608,0.00021929,7]
[368851922,1751376671723,-151.0,0.00021929,7]
[368851923,1751376671739,-271.8,0.00021929,7]
[368851924,1751376671755,-271.8,0.00021929,7]
[368851925,1751376671769,-721.480194,0.00021929,7]
[368851926,1751376671785,-721.480194,0.00021929,7]
[368851927,1751376671804,-2053.17,0.00021929,2]
[368851928,1751376671819,-1092.8,0.00021929,2]
[368851929,1751376671834,-1591.45,0.00021929,2]
[368851930,1751376671850,-151.0,0.00021929,7]
[368851931,1751376671865,-159.486442,0.00021929,7]
[368851932,1751376671882,-159.486442,0.00021929,7]
[368851933,1751376671898,-500.0,0.00021973,2]
[368851934,1751376671913,-6526.15779846,0.00021975,2]
[368851935,1751376671929,-7469.53532198,0.0002198,2]
[368851936,1751376671944,-3721.52260287,0.0002199,2]
[368851937,1751376671960,-200.0,0.00021999,2]
[368851938,1751376672094,-5317.41,0.00022,7]
[368851939,1751376672103,-42777.75,0.00022,7]
[368851940,1751376672113,-150.0,0.00022,2]
[368851941,1751376672122,-169.0,0.00022,2]
[368851942,1751376672132,-41400.96,0.00022,2]
[368851943,1751376672142,-151.0,0.00022,7]
[368851944,1751376672151,-12571.40790328,0.00022,7]
[368851945,1751376672161,-847.53272281,0.00022,7]
[368851946,1751376672170,-213.87551669,0.00022,7]
[368851947,1751376672180,-460.0,0.00022024,2]
[368851948,1751376672189,-460.0,0.00022024,2]
[368851949,1751376672199,-629.01,0.00022024,2]
[368851950,1751376672208,-460.0,0.00022024,2]
[368851951,1751376672218,-460.0,0.00022024,2]
[368851952,1751376672227,-642.37,0.00022024,2]
[368851953,1751376672236,-474.1,0.00022024,2]
[368851954,1751376672245,-474.54,0.00022024,2]
[368851955,1751376672255,-1394.04,0.00022024,2]
[368851956,1751376672264,-603.08,0.00022024,2]
[368851957,1751376672273,-1256.82,0.00022024,2]
[368851958,1751376672283,-857.59,0.00022024,2]
[368851959,1751376672294,-513.13258604,0.00022024,2]
[368851960,1751376672303,-540.67,0.00022024,2]
[368851961,1751376672312,-1100.95,0.00022024,2]
[368851962,1751376672322,-703.62,0.00022024,2]
[368851963,1751376672331,-513.66,0.00022024,2]
[368851964,1751376672341,-653.48,0.00022024,2]
[368851965,1751376672350,-495.49,0.00022024,2]
[368851966,1751376672360,-678.27,0.00022024,2]
[368851967,1751376672369,-823.93,0.00022025,2]
[368851968,1751376672379,-460.0,0.00022025,2]
[368851969,1751376672388,-695.91,0.00022025,2]
[368851970,1751376672398,-460.0,0.00022025,2]
[368851971,1751376672407,-979.38,0.00022025,2]
[368851972,1751376672416,-250.3,0.00022025,2]
[368851973,1751376672426,-151.0,0.00022025,7]
[368851974,1751376672436,-224.055291,0.00022025,7]
[368851975,1751376672446,-151.0,0.00022025,7]
[368851976,1751376672456,-151.0,0.00022025,7]
[368851977,1751376672465,-151.0,0.00022025,7]
[368851978,1751376672475,-1129.1,0.00022027,2]
[368851979,1751376672484,-704.77,0.00022027,2]
[368851980,1751376672494,-460.0,0.00022027,2]
[368851981,1751376672504,-768.12,0.00022027,2]
[368851982,1751376672514,-5015.81,0.00022027,2]
[368851983,1751376672524,-460.0,0.00022027,2]
[368851984,1751376672534,-737.94,0.00022027,2]
[368851985,1751376672547,-1161.05,0.00022027,2]
[368851986,1751376672562,-651.54,0.00022027,2]
[368851987,1751376672572,-2469.46,0.00022027,2]
[368851988,1751376672581,-1448.72,0.00022027,2]
[368851989,1751376672591,-460.0,0.00022028,2]
[368851990,1751376672601,-3553.77,0.00022028,2]
[368851991,1751376672611,-460.0,0.00022028,2]
[368851992,1751376672621,-1753.82,0.00022028,2]
[368851993,1751376672631,-5531.74,0.00022028,2]
[368851994,1751376672641,-1794.4,0.00022028,2]
[368851995,1751376672651,-215.33716,0.00022029,7]
[368851996,1751376672661,-151.0,0.00022029,7]
[368851997,1751376672671,-460.0,0.00022029,2]
[368851998,1751376672682,-6863.63929137,0.00022038,6]
[368851999,1751376672691,-151.0,0.00022197,7]
[368852000,1751376672702,-151.0,0.00022197,7]
[368852001,1751376672716,-284.495867,0.00022197,7]
[368852002,1751376672728,-151.0,0.00022197,7]
[368852003,1751376672738,-284.495867,0.00022197,7]
[368852004,1751376672748,-281.925789,0.00022197,7]
[368852005,1751376672759,-281.925789,0.00022197,7]
[368852006,1751376672768,-151.0,0.00022197,7]
[368852007,1751376672779,-297.882111,0.00022197,7]
[368852008,1751376672788,-297.882111,0.00022197,7]
[368852009,1751376672803,-524.13,0.00022201,2]
[368852010,1751376672814,-3650.08,0.00022201,2]
[368852011,1751376672827,-787.8,0.00022201,2]
[368852012,1751376672837,-460.0,0.00022201,2]
[368852013,1751376672847,-460.0,0.00022201,2]
[368852014,1751376672857,-1272.84,0.00022201,2]
[368852015,1751376672867,-2622.27,0.00022201,2]
[368852016,1751376672877,-4856.27,0.00022201,2]
[368852017,1751376672887,-1670.35,0.00022201,2]
[368852018,1751376672898,-460.0,0.00022201,2]
[368852019,1751376672907,-632.08,0.00022201,2]
[368852020,1751376672917,-460.0,0.00022201,2]
[368852021,1751376672928,-2487.2,0.00022201,2]
[368852022,1751376672938,-2089.93,0.00022201,2]
[368852023,1751376672947,-460.0,0.00022201,2]
[368852024,1751376672957,-1083.66,0.00022201,2]
[368852025,1751376672967,-2999.72,0.00022201,2]
[368852026,1751376672978,-2053.17,0.00022203,2]
[368852027,1751376672988,-1092.8,0.00022203,2]
[368852028,1751376672998,-1591.45,0.00022203,2]
[368852029,1751376673007,-189.47938942,0.00022277,2]
[368852030,1751376673018,-552.0,0.00022298,2]
[368852031,1751376673027,-460.0,0.00022298,2]
[368852032,1751376673036,-629.01,0.00022298,2]
[368852033,1751376673047,-151.0,0.00022298,7]
[368852034,1751376673057,-460.0,0.00022298,2]
[368852035,1751376673067,-460.0,0.00022298,2]
[368852036,1751376673076,-642.37,0.00022298,2]
[368852037,1751376673085,-474.1,0.00022298,2]
[368852038,1751376673095,-474.54,0.00022298,2]
[368852039,1751376673104,-1394.04,0.00022298,2]
[368852040,1751376673114,-603.08,0.00022298,2]
[368852041,1751376673124,-1066.563368,0.00022298,2]
[368852042,1751376673134,-1066.563368,0.00022298,2]
[368852043,1751376673144,-1256.82,0.00022298,2]
[368852044,1751376673154,-857.59,0.00022298,2]
[368852045,1751376673164,-540.67,0.00022298,2]
[368852046,1751376673174,-1100.95,0.00022298,2]
[368852047,1751376673183,-703.62,0.00022298,2]
[368852048,1751376673193,-513.66,0.00022298,2]
[368852049,1751376673202,-653.48,0.00022298,2]
[368852050,1751376673212,-495.49,0.00022298,2]
[368852051,1751376673222,-678.27,0.00022298,2]
[368852052,1751376673232,-823.93,0.00022299,2]
[368852053,1751376673242,-460.0,0.00022299,2]
[368852054,1751376673252,-695.91,0.00022299,2]
[368852055,1751376673262,-460.0,0.00022299,2]
[368852056,1751376673271,-979.38,0.00022299,2]
[368852057,1751376673281,-1129.1,0.00022301,2]
[368852058,1751376673291,-704.77,0.00022301,2]
[368852059,1751376673302,-460.0,0.00022301,2]
[368852060,1751376673311,-768.12,0.00022301,2]
[368852061,1751376673321,-5015.81,0.00022301,2]
[368852062,1751376673331,-460.0,0.00022301,2]
[368852063,1751376673340,-737.94,0.00022301,2]
[368852064,1751376673350,-1161.05,0.00022301,2]
[368852065,1751376673360,-651.54,0.00022301,2]
[368852066,1751376673369,-2469.46,0.00022301,2]
[368852067,1751376673378,-1448.72,0.00022301,2]
[368852068,1751376673388,-484.43,0.00022302,2]
[368852069,1751376673398,-3553.77,0.00022302,2]
[368852070,1751376673407,-460.0,0.00022302,2]
[368852071,1751376673418,-1753.82,0.00022302,2]
[368852072,1751376673428,-5531.74,0.00022302,2]
[368852073,1751376673438,-1794.4,0.00022302,2]
[368852074,1751376673447,-151.0,0.00022303,7]
[368852075,1751376673457,-151.0,0.00022303,7]
[368852076,1751376673467,-151.0,0.00022303,7]
[368852077,1751376673476,-460.0,0.00022303,2]
[368852078,1751376673486,-6863.63929137,0.00022314,7]
[368852079,1751376673499,-8882.82589235,0.00022354,2]
[368852080,1751376673508,-500.0,0.00022397,2]
[368852081,1751376673518,-200.0,0.0002241,5]
[368852082,1751376673530,-554.0,0.00022428,2]
[368852083,1751376673642,-179.67658215,0.0002244,2]
[368852084,1751376673652,-524.13,0.00022475,2]
[368852085,1751376673663,-3650.08,0.00022475,2]
[368852086,1751376673673,-787.8,0.00022475,2]
[368852087,1751376673682,-460.0,0.00022475,2]
[368852088,1751376673691,-460.0,0.00022475,2]
[368852089,1751376673701,-1272.84,0.00022475,2]
[368852090,1751376673711,-2622.27,0.00022475,2]
[368852091,1751376673721,-4856.27,0.00022475,2]
[368852092,1751376673731,-1670.35,0.00022475,2]
[368852093,1751376673740,-460.0,0.00022475,2]
[368852094,1751376673750,-632.08,0.00022475,2]
[368852095,1751376673759,-460.0,0.00022475,2]
[368852096,1751376673769,-2487.2,0.00022475,2]
[368852097,1751376673779,-2089.93,0.00022475,2]
[368852098,1751376673788,-460.0,0.00022475,2]
[368852099,1751376673803,-1083.66,0.00022475,2]
[368852100,1751376673813,-2053.17,0.00022476,2]
[368852101,1751376673823,-1092.8,0.00022476,2]
[368852102,1751376673833,-1591.45,0.00022476,2]
[368852103,1751376673844,-151.0,0.00022478,7]
[368852104,1751376673853,-217.640852,0.00022478,7]
[368852105,1751376673862,-151.0,0.00022478,7]
[368852106,1751376673872,-287.086593,0.00022478,7]
[368852107,1751376673882,-287.086593,0.00022478,7]
[368852108,1751376673892,-654.0,0.00022478,2]
[368852109,1751376673901,-2151.0,0.00022478,2]
[368852110,1751376673911,-406.0,0.00022478,2]
[368852111,1751376673920,-823.0,0.00022481,2]
[368852112,1751376673930,-554.0,0.00022491,2]
[368852113,1751376673940,-3102.53427497,0.000225,2]
[368852114,1751376673950,-1000.0,0.00022521,2]
[368852115,1751376673961,-460.0,0.00022572,2]
[368852116,1751376673971,-629.01,0.00022572,2]
[368852117,1751376673980,-460.0,0.00022572,2]
[368852118,1751376673990,-460.0,0.00022572,2]
[368852119,1751376674001,-642.37,0.00022572,2]
[368852120,1751376674013,-474.1,0.00022572,2]
[368852121,1751376674023,-474.54,0.00022572,2]
[368852122,1751376674033,-1394.04,0.00022572,2]
[368852123,1751376674043,-603.08,0.00022572,2]
[368852124,1751376674053,-1256.82,0.00022572,2]
[368852125,1751376674062,-857.59,0.00022572,2]